bitfinex/quotes_BTCUSD_20250127
["timestamp","ask_amount","ask_price","bid_price","bid_amount"]
[1737947970926,0.0186814,101590.0,101580.0,0.16152035]
[1737947974072,0.1663334,101590.0,101580.0,0.15025988]
[1737947975203,0.31732063,101590.0,101580.0,0.00329694]
[1737947975402,0.3163334,101590.0,101580.0,0.00329694]
[1737947976019,0.3163334,101590.0,101580.0,0.00229694]
[1737947976247,0.3988334,101590.0,101580.0,0.00329694]
[1737947976395,0.3163334,101590.0,101580.0,0.00129694]
[1737947976927,0.3163334,101590.0,101580.0,0.00029694]
[1737947982411,0.32709859,101590.0,101580.0,0.00029694]
[1737947987511,0.1686814,101590.0,101580.0,0.14796294]
[1737947987903,0.3163334,101590.0,101580.0,0.14796294]
[1737947989062,0.1686814,101590.0,101580.0,0.14796294]
[1737947989254,0.3163334,101590.0,101580.0,0.14796294]
[1737947989455,0.1686814,101590.0,101580.0,0.14796294]
[1737947990441,0.3163334,101590.0,101580.0,0.14796294]
[1737947990638,0.1686814,101590.0,101580.0,0.14796294]
[1737947992039,0.1686814,101590.0,101580.0,0.15096294]
[1737947992394,0.1686814,101590.0,101580.0,0.27586294]
[1737947992395,0.0186814,101590.0,101580.0,0.27586294]
[1737947993245,0.0186814,101590.0,101580.0,0.38108685]
[1737947995822,0.0186814,101590.0,101580.0,0.51585027]
[1737947996036,0.0186814,101590.0,101580.0,1.33023786]
[1737947996037,4e-07,101590.0,101580.0,1.33023786]
[1737947996656,4e-07,101590.0,101580.0,1.25326918]
[1737947996836,4e-07,101590.0,101580.0,1.28171569]
[1737947997037,0.000142,101590.0,101580.0,1.28171569]
[1737947997485,0.000142,101590.0,101580.0,1.25126918]
[1737947997797,0.000142,101590.0,101580.0,1.09239256]
[1737947998066,0.000142,101590.0,101580.0,1.25026918]
[1737947998274,0.000142,101590.0,101580.0,1.25326918]
[1737947998483,0.000142,101590.0,101580.0,1.26126918]
[1737947998683,0.000142,101590.0,101580.0,1.33808816]
[1737947999243,0.000142,101590.0,101580.0,1.42595833]
[1737947999441,0.000142,101590.0,101580.0,6.31426976]
[1737948000233,0.000142,101590.0,101580.0,5.88435833]
[1737948000429,1e-06,101590.0,101580.0,5.88435833]
[1737948001005,1e-06,101590.0,101580.0,5.91175933]
[1737948001408,1e-06,101590.0,101580.0,5.91575933]
[1737948001859,1e-06,101590.0,101580.0,5.90375933]
[1737948002276,1e-06,101590.0,101580.0,5.91875933]
[1737948002676,1e-06,101590.0,101580.0,5.80707076]
[1737948002880,1e-06,101590.0,101580.0,5.77666976]
[1737948004453,1e-06,101590.0,101580.0,5.88835833]
[1737948005813,1e-06,101590.0,101580.0,5.88235833]
[1737948006009,1e-06,101590.0,101580.0,5.90371339]
[1737948006232,1e-06,101590.0,101580.0,5.91871339]
[1737948006635,1e-06,101590.0,101580.0,5.87935833]
[1737948007121,1e-06,101590.0,101580.0,5.91870376]
[1737948007319,1e-06,101590.0,101580.0,5.88835833]
[1737948007521,1e-06,101590.0,101580.0,5.91268742]
[1737948007829,1e-06,101590.0,101580.0,5.91668742]
[1737948008235,1e-06,101590.0,101580.0,5.88635833]
[1737948010848,1e-06,101590.0,101580.0,5.91666205]
[1737948011052,1e-06,101590.0,101580.0,5.91660105]
[1737948011463,1e-06,101590.0,101580.0,5.92260105]
[1737948012218,1e-06,101590.0,101580.0,5.91360105]
[1737948012419,1e-06,101590.0,101580.0,5.90760105]
[1737948012539,1e-06,101590.0,101580.0,5.91660105]
[1737948012739,1e-06,101590.0,101580.0,5.90760105]
[1737948013158,1e-06,101590.0,101580.0,5.91660105]
[1737948013361,1e-06,101590.0,101580.0,5.90760105]
[1737948013803,1e-06,101590.0,101580.0,5.91660105]
[1737948013979,1e-06,101590.0,101580.0,5.92260105]
[1737948014179,0.0001415,101610.0,101600.0,0.15551362]
[1737948014495,0.00019084,101610.0,101600.0,0.24498429]
[1737948014660,0.00019084,101610.0,101600.0,0.147637]
[1737948015019,0.23011384,101610.0,101600.0,0.147637]
[1737948015163,0.42694984,101610.0,101590.0,0.543349]
[1737948015364,0.42694984,101610.0,101600.0,0.147637]
[1737948015571,0.0464,101600.0,101590.0,0.395707]
[1737948016179,0.04738723,101600.0,101590.0,0.395707]
[1737948016404,0.0464,101600.0,101590.0,0.398707]
[1737948016602,0.06494,101600.0,101590.0,0.398707]
[1737948016818,0.06494,101600.0,101590.0,0.395707]
[1737948017164,0.06494,101600.0,101590.0,0.400707]
[1737948017350,0.06494,101600.0,101590.0,0.395707]
[1737948017558,0.14224,101600.0,101590.0,0.395707]
[1737948018228,0.289877,101600.0,101590.0,0.396707]
[1737948018433,0.14224,101600.0,101590.0,0.396707]
[1737948018790,0.14224,101600.0,101590.0,0.398707]
[1737948020644,0.289877,101600.0,101590.0,0.20214836]
[1737948022647,0.439877,101600.0,101590.0,0.00529636]
[1737948023854,0.439877,101600.0,101590.0,0.15294836]
[1737948024818,0.439877,101600.0,101590.0,0.00529636]
[1737948025929,0.53722429,101600.0,101590.0,0.00529636]
[1737948026306,0.01854,101600.0,101590.0,0.00529636]
[1737948026510,0.01398856,101600.0,101590.0,0.60124514]
[1737948026708,0.01398856,101600.0,101590.0,0.62326084]
[1737948026918,0.01398856,101600.0,101590.0,0.65367954]
[1737948027589,0.01398856,101600.0,101590.0,0.65267954]
[1737948028186,5.6e-07,101600.0,101590.0,0.69847954]
[1737948028391,0.00019084,101610.0,101600.0,0.17851362]
[1737948028597,0.00019084,101610.0,101600.0,0.49935211]
[1737948028802,8.4e-07,101610.0,101600.0,0.61005675]
[1737948029008,8.4e-07,101610.0,101600.0,0.80585675]
[1737948029207,8.4e-07,101610.0,101600.0,0.82585675]
[1737948029780,8.4e-07,101610.0,101600.0,0.83485675]
[1737948030587,8.4e-07,101610.0,101600.0,0.82085675]
[1737948031133,8.4e-07,101610.0,101600.0,0.81485675]
[1737948031280,8.4e-07,101610.0,101600.0,0.82085675]
[1737948032502,8.4e-07,101610.0,101600.0,0.90872692]
[1737948032937,8.4e-07,101610.0,101600.0,0.87830822]
[1737948034692,0.00014244,101610.0,101600.0,0.87830822]
[1737948036103,0.00014244,101610.0,101600.0,0.86930822]
[1737948036471,0.00014244,101610.0,101600.0,0.87830822]
[1737948036821,0.00014244,101610.0,101600.0,0.79638663]
[1737948037002,0.00014244,101610.0,101600.0,0.79038663]
[1737948037207,0.00014244,101610.0,101600.0,0.79638663]
[1737948037726,0.00014244,101610.0,101600.0,0.79038663]
[1737948038280,0.00014244,101610.0,101600.0,0.82975742]
[1737948038782,0.00014244,101610.0,101600.0,0.83575742]
[1737948040136,0.00014244,101610.0,101600.0,0.92362759]
[1737948043583,0.00910292,101640.0,101630.0,0.147594]
[1737948043734,0.02764292,101640.0,101630.0,0.147594]
[1737948044753,0.02764292,101640.0,101630.0,0.149594]
[1737948045643,0.02764292,101640.0,101630.0,0.26128257]
[1737948046126,0.02764292,101640.0,101630.0,0.26628257]
[1737948046850,0.02764292,101640.0,101630.0,0.154594]
[1737948047645,0.02764292,101640.0,101630.0,0.16490063]
[1737948048284,0.02764292,101640.0,101630.0,0.2765892]
[1737948048494,0.02764292,101640.0,101630.0,0.16490063]
[1737948049198,0.00910292,101640.0,101630.0,0.37481311]
[1737948049700,0.00910292,101640.0,101630.0,0.38581311]
[1737948049905,0.00910292,101640.0,101630.0,0.37781311]
[1737948050107,0.00910292,101640.0,101630.0,0.38281311]
[1737948050610,0.00910292,101640.0,101630.0,0.38581311]
[1737948051420,0.00910292,101640.0,101630.0,0.27412454]
[1737948052871,0.02,101680.0,101640.0,0.393526]
[1737948053185,0.24587152,101670.0,101650.0,0.344304]
[1737948053388,0.09833452,101670.0,101650.0,0.541057]
[1737948053947,0.13659579,101670.0,101650.0,0.541057]
[1737948054147,0.11678535,101670.0,101650.0,0.344304]
[1737948054468,0.11678535,101670.0,101650.0,0.541048]
[1737948054682,0.11678535,101670.0,101650.0,0.737792]
[1737948054882,0.11678535,101670.0,101650.0,0.541044]
[1737948055106,0.11678535,101670.0,101650.0,0.737788]
[1737948055301,0.11678535,101670.0,101660.0,0.14755]
[1737948055625,0.11588729,101670.0,101660.0,0.14755]
[1737948055802,0.11588729,101670.0,101650.0,0.542039]
[1737948056003,0.11184,101670.0,101660.0,0.14755]
[1737948056184,0.01854,101670.0,101660.0,0.14755]
[1737948057033,0.01954,101670.0,101660.0,0.14755]
[1737948057232,0.001,101670.0,101660.0,0.14755]
[1737948057453,0.00049365,101680.0,101670.0,0.147536]
[1737948059173,0.00049365,101680.0,101670.0,0.149536]
[1737948059865,0.01903365,101680.0,101670.0,0.149536]
[1737948060450,0.01903365,101680.0,101670.0,0.154536]
[1737948061820,0.01903365,101680.0,101670.0,0.147536]
[1737948062021,0.01903365,101680.0,101670.0,0.152536]
[1737948062242,0.01903365,101680.0,101670.0,0.154536]
[1737948062695,0.01903365,101680.0,101670.0,0.152536]
[1737948063106,0.01903365,101680.0,101670.0,0.154536]
[1737948063549,0.01903365,101680.0,101670.0,0.147536]
[1737948063771,0.01903365,101680.0,101670.0,0.152536]
[1737948063973,0.01903365,101680.0,101670.0,0.154536]
[1737948064173,0.01903365,101680.0,101670.0,0.149536]
[1737948064435,0.01903365,101680.0,101670.0,0.151536]
[1737948065147,0.01903365,101680.0,101670.0,0.24888329]
[1737948065362,0.01903365,101680.0,101670.0,0.44827186]
[1737948065569,0.01903365,101680.0,101670.0,0.59627186]
[1737948065684,0.01903365,101680.0,101670.0,0.59727186]
[1737948065898,0.01903365,101680.0,101670.0,0.48558329]
[1737948066351,0.01903365,101680.0,101670.0,0.297536]
[1737948066653,0.01903365,101680.0,101670.0,0.304536]
[1737948066853,0.01903365,101680.0,101670.0,0.40188329]
[1737948067057,0.01903365,101680.0,101670.0,0.52357186]
[1737948067399,0.01903365,101680.0,101670.0,0.60327186]
[1737948068341,0.01903365,101680.0,101670.0,0.49158329]
[1737948068958,0.01903365,101680.0,101670.0,0.60327186]
[1737948069162,0.01903365,101680.0,101670.0,0.62627186]
[1737948070159,0.01903365,101680.0,101670.0,0.62656901]
[1737948070365,0.01917515,101680.0,101670.0,0.62656901]
[1737948073017,0.01917515,101680.0,101670.0,0.51488044]
[1737948074655,0.01917515,101680.0,101670.0,0.48188044]
[1737948074858,0.01917515,101680.0,101670.0,0.38453315]
[1737948076053,0.01917515,101680.0,101670.0,0.38253315]
[1737948076253,0.01917515,101680.0,101670.0,0.15483315]
[1737948076876,0.01917515,101680.0,101670.0,0.15283315]
[1737948077261,0.01917515,101680.0,101670.0,0.15383315]
[1737948077468,0.01917515,101680.0,101670.0,0.14883315]
[1737948077838,0.01917515,101680.0,101670.0,0.15383315]
[1737948077997,0.01917515,101680.0,101670.0,0.14883315]
[1737948078437,0.01917515,101680.0,101670.0,0.15083315]
[1737948079280,0.01917515,101680.0,101670.0,0.37873315]
[1737948079691,0.01917515,101680.0,101670.0,0.42793315]
[1737948079867,0.01917515,101680.0,101670.0,0.53962172]
[1737948080097,0.01917515,101680.0,101670.0,0.53528044]
[1737948080235,0.01917515,101680.0,101670.0,0.64696901]
[1737948081065,0.01917515,101680.0,101670.0,0.53528044]
[1737948081228,0.01917515,101680.0,101670.0,0.52528044]
[1737948081435,0.01917515,101680.0,101670.0,0.42793315]
[1737948089049,0.01917515,101680.0,101670.0,0.53962172]
[1737948089427,0.01917515,101680.0,101670.0,0.66996901]
[1737948089653,0.01917515,101680.0,101670.0,0.77165758]
[1737948089859,0.01917515,101680.0,101670.0,0.75865758]
[1737948092403,0.01917515,101680.0,101670.0,0.64696901]
[1737948093992,0.01917515,101680.0,101670.0,0.75865758]
[1737948094190,0.01917515,101680.0,101670.0,0.64696901]
[1737948094508,0.01917515,101680.0,101670.0,0.75865758]
[1737948095350,0.01917515,101680.0,101670.0,0.64696901]
[1737948095989,0.01917515,101680.0,101670.0,0.75865758]
[1737948097980,0.01917515,101680.0,101670.0,0.64696901]
[1737948098208,0.01917515,101680.0,101670.0,0.75865758]
[1737948098639,0.01917515,101680.0,101670.0,0.15083315]
[1737948099468,0.01917515,101680.0,101670.0,0.26252172]
[1737948099706,0.01917515,101680.0,101670.0,0.15083315]
[1737948103567,0.16669615,101680.0,101670.0,0.15083315]
[1737948103767,0.26404344,101680.0,101670.0,0.00329715]
[1737948104048,0.26404344,101680.0,101670.0,0.15083315]
[1737948104243,0.26404344,101680.0,101670.0,0.00329715]
[1737948104448,0.26404344,101680.0,101670.0,0.00229715]
[1737948104868,0.26404344,101680.0,101670.0,0.00029715]
[1737948105091,0.26604344,101680.0,101670.0,0.00029715]
[1737948105288,0.32254344,101680.0,101670.0,0.00029715]
[1737948105491,0.35934344,101680.0,101670.0,0.00029715]
[1737948105834,0.50934344,101680.0,101670.0,0.00029715]
[1737948106662,0.50734344,101680.0,101670.0,0.00029715]
[1737948106951,0.50734344,101680.0,101670.0,0.00129715]
[1737948106952,0.51134344,101680.0,101670.0,0.00129715]
[1737948107457,0.61134344,101680.0,101670.0,0.00129715]
[1737948108648,0.51134344,101680.0,101670.0,0.00129715]
[1737948110458,0.5309238,101680.0,101670.0,0.00129715]
[1737948111463,0.54707789,101680.0,101670.0,0.00129715]
[1737948112045,0.12052244,101680.0,101670.0,0.14883315]
[1737948112424,0.02317515,101680.0,101670.0,0.14883315]
[1737948113630,0.01917515,101680.0,101670.0,0.14783315]
[1737948113929,0.02117515,101680.0,101670.0,0.14783315]
[1737948114539,0.02117515,101680.0,101670.0,0.64286901]
[1737948115088,0.02117515,101680.0,101670.0,0.42383315]
[1737948115527,0.02117515,101680.0,101670.0,0.27383315]
[1737948117002,0.02117515,101680.0,101670.0,0.27583315]
[1737948117164,0.01917515,101680.0,101670.0,0.27583315]
[1737948117520,0.01917515,101680.0,101670.0,0.29683007]
[1737948120879,0.01917515,101680.0,101670.0,0.15483315]
[1737948121708,0.01917515,101680.0,101670.0,0.15283315]
[1737948122004,0.01917515,101680.0,101670.0,0.15383315]
[1737948122441,0.02653058,101680.0,101670.0,0.14883315]
[1737948124278,0.02653058,101680.0,101670.0,0.15083315]
[1737948127739,0.02653058,101680.0,101670.0,0.19703315]
[1737948128360,0.01917515,101680.0,101670.0,0.19703315]
[1737948131104,0.01917515,101680.0,101670.0,0.19403315]
[1737948131421,0.01917515,101680.0,101670.0,0.19603315]
[1737948131830,0.01917515,101680.0,101670.0,0.19403315]
[1737948132061,0.01917515,101680.0,101670.0,0.19603315]
[1737948133395,0.01917515,101680.0,101670.0,0.19703315]
[1737948142316,0.01917515,101680.0,101670.0,0.27273315]
[1737948143733,0.01917515,101680.0,101670.0,0.28743127]
[1737948148643,0.01917515,101680.0,101670.0,0.36062724]
[1737948149307,0.01917515,101680.0,101670.0,0.6911705]
[1737948149511,0.01917515,101680.0,101670.0,0.74458086]
[1737948149732,0.01917515,101680.0,101670.0,0.67138489]
[1737948151713,0.01917515,101680.0,101670.0,0.74458086]
[1737948151920,0.01917515,101680.0,101670.0,0.67138489]
[1737948153539,0.01917515,101680.0,101670.0,0.64097453]
[1737948155640,0.01917515,101680.0,101670.0,0.66097891]
[1737948155867,0.01917515,101680.0,101670.0,0.73417488]
[1737948157630,1.5e-07,101680.0,101670.0,0.80737085]
[1737948157909,1.5e-07,101680.0,101670.0,0.76450122]
[1737948158257,1.5e-07,101680.0,101670.0,1.30610122]
[1737948159173,1.5e-07,101680.0,101670.0,1.30510122]
[1737948159344,1.5e-07,101680.0,101670.0,1.23490525]
[1737948159571,1.5e-07,101680.0,101670.0,1.19457891]
[1737948159751,1.5e-07,101680.0,101670.0,1.20257891]
[1737948159953,1.5e-07,101680.0,101670.0,1.19957891]
[1737948160113,1.5e-07,101680.0,101670.0,0.66997891]
[1737948160553,1.5e-07,101680.0,101670.0,0.64697891]
[1737948160937,1.5e-07,101680.0,101670.0,0.66597891]
[1737948161080,1.5e-07,101680.0,101670.0,0.66897891]
[1737948162832,1.5e-07,101680.0,101670.0,0.70728064]
[1737948163185,1.5e-07,101680.0,101670.0,0.68727626]
[1737948167506,1.5e-07,101680.0,101670.0,0.69219679]
[1737948171808,0.01854015,101680.0,101670.0,0.69219679]
[1737948172303,0.01854015,101680.0,101670.0,0.68919679]
[1737948172530,0.01854015,101680.0,101670.0,0.66619679]
[1737948172762,0.01854015,101680.0,101670.0,0.66119679]
[1737948172962,0.01854015,101680.0,101670.0,0.66619679]
[1737948173203,0.01854015,101680.0,101670.0,0.66319679]
[1737948173438,0.01854015,101680.0,101670.0,0.66519679]
[1737948174086,0.01854015,101680.0,101670.0,0.68819679]
[1737948175270,0.01854015,101680.0,101670.0,0.79969449]
[1737948175498,0.01854015,101680.0,101670.0,0.83007288]
[1737948176465,0.01854015,101680.0,101670.0,0.71857518]
[1737948179431,0.01854015,101680.0,101670.0,0.83007288]
[1737948180646,1.5e-07,101680.0,101670.0,0.83007288]
[1737948181329,5.5e-07,101690.0,101680.0,0.453221]
[1737948181581,5.8e-07,101690.0,101680.0,0.70244438]
[1737948181784,5.8e-07,101690.0,101680.0,0.7069644]
[1737948182407,9.8e-07,101700.0,101690.0,0.313207]
[1737948182585,9.8e-07,101700.0,101690.0,0.55243038]
[1737948182794,9.8e-07,101700.0,101690.0,0.55694295]
[1737948183765,9.8e-07,101700.0,101690.0,0.67344065]
[1737948184915,9.8e-07,101700.0,101690.0,0.67544065]
[1737948186231,9.8e-07,101700.0,101690.0,0.82544065]
[1737948186946,9.8e-07,101700.0,101690.0,0.62244525]
[1737948187941,9.8e-07,101700.0,101690.0,0.64213944]
[1737948188168,9.8e-07,101700.0,101690.0,0.64013944]
[1737948189065,9.8e-07,101700.0,101690.0,0.65702297]
[1737948189311,9.8e-07,101700.0,101690.0,0.65202297]
[1737948189552,0.0002016,101720.0,101710.0,0.307478]
[1737948189826,0.0002016,101720.0,101710.0,0.55992529]
[1737948190071,0.0002016,101720.0,101710.0,0.56443768]
[1737948190781,0.0002016,101720.0,101710.0,0.56643768]
[1737948191054,0.0002016,101720.0,101710.0,0.67593538]
[1737948191818,0.0017272,101730.0,101720.0,0.180463]
[1737948192038,9e-08,101730.0,101720.0,0.81414397]
[1737948192283,3e-07,101740.0,101730.0,0.330449]
[1737948192499,8e-07,101750.0,101740.0,0.390434]
[1737948192737,0.0001415,101790.0,101780.0,0.147376]
[1737948192966,0.00063466,101790.0,101780.0,0.2588737]
[1737948193166,0.00063466,101790.0,101780.0,0.54359167]
[1737948193628,0.00063466,101790.0,101780.0,0.30174668]
[1737948193839,0.14889472,101790.0,101780.0,0.00437068]
[1737948194015,0.14889472,101790.0,101780.0,0.15174668]
[1737948194216,0.14799666,101790.0,101780.0,0.15174668]
[1737948194416,0.00063466,101790.0,101780.0,0.15174668]
[1737948195421,0.00153272,101790.0,101780.0,0.15174668]
[1737948195839,0.00063466,101790.0,101780.0,0.15174668]
[1737948197022,0.00063466,101790.0,101780.0,0.26324438]
[1737948197227,0.00063466,101790.0,101780.0,0.15174668]
[1737948197645,0.00063466,101790.0,101780.0,0.00437068]
[1737948197844,0.00063466,101790.0,101780.0,0.15174668]
[1737948198249,0.00063466,101790.0,101780.0,0.00437068]
[1737948198816,0.00063466,101790.0,101780.0,0.15174668]
[1737948199412,0.00063466,101790.0,101780.0,0.00437068]
[1737948199634,0.00063466,101790.0,101780.0,0.15174668]
[1737948199859,0.01917466,101790.0,101780.0,0.15174668]
[1737948201477,0.01917466,101790.0,101780.0,0.26324438]
[1737948201769,0.01917466,101790.0,101780.0,0.42324438]
[1737948201906,0.01917466,101790.0,101780.0,0.4188737]
[1737948202119,0.01917466,101790.0,101780.0,0.51622099]
[1737948202972,0.01917466,101790.0,101780.0,0.51822099]
[1737948203855,0.01917466,101790.0,101780.0,0.53103869]
[1737948204850,0.01917466,101790.0,101780.0,0.40954099]
[1737948205104,0.01917466,101790.0,101780.0,0.3121937]
[1737948205460,0.02007272,101790.0,101780.0,0.1621937]
[1737948205647,0.01917466,101790.0,101780.0,0.149376]
[1737948206475,0.01917466,101790.0,101780.0,0.2608737]
[1737948206677,0.01917466,101790.0,101780.0,0.36822099]
[1737948206883,0.01917466,101790.0,101780.0,0.36622099]
[1737948207083,0.02117466,101790.0,101780.0,0.147376]
[1737948207552,0.01917466,101790.0,101780.0,0.147376]
[1737948207769,0.01917466,101790.0,101780.0,0.149376]
[1737948208648,0.01917466,101790.0,101780.0,0.149336]
[1737948211217,0.01917466,101790.0,101780.0,0.2608337]
[1737948212200,0.01917466,101790.0,101780.0,0.4108337]
[1737948213237,0.01917466,101790.0,101780.0,0.2608337]
[1737948213642,0.01917466,101790.0,101780.0,0.4108337]
[1737948214835,0.01917466,101790.0,101780.0,0.51818099]
[1737948215045,4.4001416,101800.0,101790.0,0.3125]
[1737948215259,4.40019088,101800.0,101790.0,0.78020469]
[1737948215483,4.36089888,101800.0,101790.0,1.32180469]
[1737948215711,4.30196088,101800.0,101790.0,1.35185528]
[1737948216146,4.30196088,101800.0,101790.0,0.75720469]
[1737948216366,4.30196088,101800.0,101790.0,0.76620469]
[1737948216798,4.30196088,101800.0,101790.0,0.64570699]
[1737948217016,4.30196088,101800.0,101790.0,0.76620469]
[1737948217240,2.45314508,101800.0,101790.0,1.33780469]
[1737948217458,1.6066176,101800.0,101790.0,1.33123415]
[1737948217676,1.6039176,101800.0,101790.0,1.35877048]
[1737948217893,1.5868176,101800.0,101790.0,1.40897244]
[1737948218082,1.5671716,101800.0,101790.0,1.40897244]
[1737948218314,1.25561509,101800.0,101790.0,0.77857244]
[1737948218550,1.22547292,101800.0,101790.0,0.77857244]
[1737948218761,1.1994779,101800.0,101790.0,0.77857244]
[1737948218985,1.16063014,101800.0,101790.0,0.77857244]
[1737948219197,0.01666667,101880.0,101870.0,0.307246]
[1737948219400,0.01666667,101880.0,101870.0,0.5302414]
[1737948219674,0.03535454,101880.0,101870.0,0.42342165]
[1737948219917,0.08390399,101920.0,101910.0,0.147188]
[1737948220164,0.08349836,101920.0,101910.0,0.147188]
[1737948220402,0.08349836,101920.0,101910.0,0.15186558]
[1737948221157,0.23067236,101920.0,101910.0,0.15186558]
[1737948221429,0.08349836,101920.0,101910.0,0.15186558]
[1737948221957,0.08249836,101920.0,101910.0,0.15186558]
[1737948222448,0.08249836,101920.0,101910.0,0.15286558]
[1737948222707,0.08249836,101920.0,101910.0,0.00567758]
[1737948222968,0.23071182,101920.0,101910.0,0.00567758]
[1737948223211,0.24835376,101920.0,101910.0,0.00567758]
[1737948223948,0.10117976,101920.0,101910.0,0.15286558]
[1737948224926,0.14997976,101920.0,101910.0,0.15286558]
[1737948226415,0.14997976,101920.0,101910.0,0.26436328]
[1737948226643,0.14997976,101920.0,101910.0,0.15286558]
[1737948226855,0.29715376,101920.0,101910.0,0.00567758]
[1737948227475,0.14997976,101920.0,101910.0,0.15286558]
[1737948229108,0.14997976,101920.0,101910.0,0.148188]
[1737948232153,0.29715376,101920.0,101910.0,0.001]
[1737948232311,0.14997976,101920.0,101910.0,0.148188]
[1737948232507,0.29715376,101920.0,101910.0,0.001]
[1737948232782,0.617033,101910.0,101880.0,0.1963]
[1737948232982,0.617033,101910.0,101890.0,0.343504]
[1737948232983,0.71437929,101910.0,101890.0,0.343504]
[1737948233207,0.147203,101900.0,101880.0,0.5040957]
[1737948233418,0.0773,101890.0,101880.0,0.60144299]
[1737948233593,0.0773,101890.0,101880.0,0.87294069]
[1737948233747,0.0773,101890.0,101880.0,0.76144299]
[1737948234655,0.09584,101890.0,101880.0,0.75144299]
[1737948234866,0.09584,101890.0,101880.0,0.6540957]
[1737948235810,0.09584,101890.0,101880.0,0.397598]
[1737948235940,0.14353806,101890.0,101880.0,0.201298]
[1737948236148,0.14264,101890.0,101880.0,0.152232]
[1737948236410,0.14353806,101890.0,101880.0,0.152232]
[1737948236643,0.14264,101890.0,101880.0,0.147232]
[1737948237260,0.14264,101890.0,101870.0,0.392628]
[1737948237463,0.14264,101890.0,101880.0,0.005]
[1737948237464,0.289859,101890.0,101880.0,0.005]
[1737948237603,0.289859,101890.0,101880.0,0.152232]
[1737948238017,0.14264,101890.0,101880.0,0.152232]
[1737948238282,0.14264,101890.0,101880.0,0.005]
[1737948238283,0.289857,101890.0,101880.0,0.005]
[1737948238858,0.289857,101890.0,101870.0,0.343571]
[1737948238859,0.77983729,101890.0,101870.0,0.343571]
[1737948239060,0.58353829,101890.0,101880.0,0.002]
[1737948239435,0.0773,101880.0,101860.0,0.3078307]
[1737948239664,0.09584,101880.0,101870.0,0.196327]
[1737948239889,0.243072,101880.0,101870.0,0.196327]
[1737948240122,0.439382,101880.0,101860.0,0.736253]
[1737948240355,0.439382,101880.0,101860.0,0.392665]
[1737948240566,0.635701,101880.0,101860.0,0.539916]
[1737948240782,0.63575022,101880.0,101860.0,0.53993]
[1737948240987,0.53677851,101880.0,101860.0,0.539921]
[1737948241187,0.53677851,101880.0,101860.0,0.73626]
[1737948241407,0.343597,101870.0,101850.0,0.147269]
[1737948241625,0.343597,101870.0,101840.0,0.196371]
[1737948241626,0.467717,101860.0,101840.0,0.196371]
[1737948241845,0.147275,101850.0,101840.0,0.196371]
[1737948242059,0.76143429,101860.0,101840.0,0.343652]
[1737948242260,0.76143329,101860.0,101840.0,0.343652]
[1737948242480,0.147275,101850.0,101830.0,0.62754037]
[1737948242689,0.147275,101850.0,101830.0,0.196393]
[1737948242690,0.07819806,101840.0,101830.0,0.196393]
[1737948242919,0.0773,101840.0,101830.0,0.196393]
[1737948243322,0.09584,101840.0,101830.0,0.196393]
[1737948243528,0.439524,101840.0,101820.0,0.62758837]
[1737948243734,0.0468,101830.0,101820.0,0.08745937]
[1737948243937,0.194104,101830.0,101820.0,0.08745937]
[1737948244198,0.19500206,101830.0,101820.0,0.08745937]
[1737948244417,0.36875129,101830.0,101820.0,0.08745937]
[1737948244840,0.47907858,101830.0,101820.0,0.08745937]
[1737948245051,0.38563129,101830.0,101820.0,0.08745937]
[1737948245698,0.40563129,101830.0,101820.0,0.08745937]
[1737948245909,0.40563129,101830.0,101820.0,0.006]
[1737948246115,0.147333,101810.0,101800.0,0.00029652]
[1737948246317,0.26322029,101810.0,101800.0,0.14764352]
[1737948246872,0.26222029,101810.0,101800.0,0.14764352]
[1737948248058,0.33952029,101810.0,101800.0,0.00029652]
[1737948248315,0.38632029,101810.0,101800.0,0.00029652]
[1737948249117,0.38636029,101810.0,101800.0,0.00229652]
[1737948249333,0.40636029,101810.0,101800.0,0.00229652]
[1737948249743,0.15,101800.0,101780.0,0.00029694]
[1737948249962,0.36970735,101790.0,101780.0,0.00029694]
[1737948250174,0.38880929,101790.0,101780.0,0.00029694]
[1737948250378,0.53880929,101790.0,101780.0,0.00029694]
[1737948250637,0.64180929,101790.0,101780.0,0.00029694]
[1737948250857,0.167376,101780.0,101770.0,0.00029652]
[1737948251061,0.34202329,101780.0,101770.0,0.00078968]
[1737948251273,0.51882329,101780.0,101770.0,0.00078968]
[1737948251482,0.53736329,101780.0,101770.0,0.00078968]
[1737948252603,0.38736329,101780.0,101770.0,0.00078968]
[1737948252814,0.14264,101780.0,101770.0,0.14818068]
[1737948253025,0.09584,101780.0,101770.0,0.14818068]
[1737948253236,0.10488,101780.0,101770.0,0.14918068]
[1737948253468,0.09588,101780.0,101770.0,0.14818068]
[1737948253862,0.10388,101780.0,101770.0,0.14918068]
[1737948254079,0.34060329,101780.0,101770.0,0.00078968]
[1737948254523,0.09588,101780.0,101770.0,0.14818068]
[1737948254969,0.09588,101780.0,101770.0,0.25967838]
[1737948255177,0.09588,101780.0,101770.0,0.14818068]
[1737948255475,0.01858,101780.0,101770.0,0.14818068]
[1737948256087,0.01858,101780.0,101770.0,0.15018068]
[1737948262612,0.01858,101780.0,101770.0,0.00278968]
[1737948262613,0.165956,101780.0,101770.0,0.00278968]
[1737948262827,0.34610329,101780.0,101770.0,0.00278968]
[1737948263026,0.34610329,101780.0,101770.0,0.15018068]
[1737948263453,0.34610329,101780.0,101770.0,0.14818068]
[1737948263665,0.34610329,101780.0,101770.0,0.00078968]
[1737948264286,0.19872729,101780.0,101770.0,0.14818068]
[1737948264521,0.34610329,101780.0,101770.0,0.14818068]
[1737948264733,0.34610329,101780.0,101770.0,0.00078968]
[1737948265901,0.34910329,101780.0,101770.0,0.00078968]
[1737948268014,0.34924469,101780.0,101770.0,0.14818068]
[1737948268511,0.36889881,101780.0,101770.0,0.14818068]
[1737948269484,0.38075981,101780.0,101770.0,0.14818068]
[1737948270190,0.38075981,101780.0,101770.0,0.14814068]
[1737948272836,0.38075981,101780.0,101770.0,0.00074968]
[1737948275701,0.5277071,101780.0,101770.0,0.00074968]
[1737948275904,0.43035981,101780.0,101770.0,0.00074968]
[1737948277108,0.43995981,101780.0,101770.0,0.00074968]
[1737948278308,0.43035981,101780.0,101770.0,0.00074968]
[1737948279993,0.13603652,101780.0,101770.0,0.14814068]
[1737948280285,0.28341252,101780.0,101770.0,0.00074968]
[1737948281909,0.38075981,101780.0,101770.0,0.00074968]
[1737948283276,0.43035981,101780.0,101770.0,0.00074968]
[1737948287193,0.43035981,101780.0,101770.0,0.14814068]
[1737948287528,0.43035981,101780.0,101770.0,0.00074968]
[1737948292038,0.42994443,101780.0,101770.0,0.00074968]
[1737948299962,0.46925004,101780.0,101770.0,0.00074968]
[1737948300167,0.42994443,101780.0,101770.0,0.00074968]
[1737948302417,0.59994443,101780.0,101770.0,0.00074968]
[1737948302663,0.57994443,101780.0,101770.0,0.00074968]
[1737948302817,0.59994443,101780.0,101770.0,0.00074968]